[Event "GER-ch Youth U14 2020"]
[Site "Willingen"]
[Date "2020.10.22"]
[Round "4.21"]
[White "Brunner, Alexander"]
[Black "Niemann, Leon"]
[Result "0-1"]
[ECO "A58"]
[WhiteElo "1692"]
[BlackElo "1880"]
[Annotator "NA RC"]
[PlyCount "60"]
[EventDate "2020.10.20"]
[EventType "swiss"]
[EventRounds "7"]
[EventCountry "GER"]
[SourceTitle "playchess.com"]
[Source "ChessBase"]
[SourceQuality "1"]
[TimeControl "40/5400+30:1800+30"]

{[%evp 15,52,48,54,45,32767,7,50,51,72,66,72,93,65,67,130,153,134,32767,24,0,8,32767,32767,32767,-154,-74,-47,-263,-241,-259,-247,-236,32767,32767,-273,32767,32767,32767,-304]} 1. d4 {[%emt 0:00:00]} Nf6 {[%emt 0:00:00]} 2. c4 {[%emt 0:00:00]} c5 {[%emt 0:00:00]} 3. d5 {[%emt 0:00:00]} b5 {[%emt 0:00:00]} 4. cxb5 {[%emt 0:00:22]} a6 {[%emt 0:00:00]} 5. bxa6 {[%emt 0:00:22]} g6 {[%emt 0:00:04]} 6. Nc3 {[%emt 0:00:32] A58: Benko/Volga Gambit: Lines with 5 bxa6.} Bg7 {[%emt 0:00:24]} 7. e4 {[%emt 0:00:58]} O-O {[%emt 0:00:42]} 8. Nf3 {[%emt 0:01:02]} Qa5 {[%emt 0:04:47]} 9. Bd2 {[%emt 0:03:57]} Bxa6 {[%emt 0:05:17]} 10. Bxa6 {[%emt 0:00:24]} Nxa6 {[%emt 0:00:13]} 11. O-O {[%emt 0:03:46]} Rfb8 {[%emt 0:02:35] [#]} 12. a4 $146 {[%emt 0:02:24]} ({Predecessor:} 12. Rb1 d6 13. e5 dxe5 14. Nxe5 Qc7 15. Re1 Nb4 16. Nc6 Nxc6 17. dxc6 Rd8 18. Qe2 Qxc6 {0-1 (39) Kula,R (2310)-Czernek,T (2003) Police 2019}) 12... Nb4 {[%emt 0:08:19]} 13. e5 {[%emt 0:05:52]} Ng4 {[%emt 0:13:19]} 14. Bf4 {[%emt 0:00:59]} Qa6 {[%emt 0:18:22]} 15. Nb5 {[%emt 0:05:18]} Qb7 {[%emt 0:03:11]} 16. Nc3 {[%emt 0:05:18]} c4 {[%emt 0:11:17]} 17. h3 {[%emt 0:08:53]} Nd3 {[%emt 0:02:14] Double Attack} 18. e6 {[%emt 0:08:37]} Nxf4 {[%emt 0:03:55]} 19. exf7+ {[%emt 0:00:36]} Kh8 {[%emt 0:00:41]} 20. hxg4 {[%emt 0:00:58]} Qxb2 {[%emt 0:05:27]} 21. Ne4 $2 {[%emt 0:01:49]} ({Wrong is} 21. Qc1 $2 Qxc1 22. Raxc1 Bxc3 $19) (21. d6 $1 $15 e6 22. Ne4) 21... Qxa1 {[%emt 0:01:19]} 22. Qxa1 {[%emt 0:00:19]} Bxa1 {[%emt 0:00:01]} 23. Rxa1 {[%emt 0:00:02]} Nxd5 {[%emt 0:02:28]} 24. Nc5 {[%emt 0:01:37]} Rf8 {[%emt 0:02:51]} 25. Nxd7 {[%emt 0:01:25]} Rxf7 {[%emt 0:00:08]} 26. Nfe5 {[%emt 0:00:10]} Rf4 $19 {[%emt 0:01:45]} 27. Rd1 {[%emt 0:02:54]} Nc3 {[%emt 0:04:31]} 28. Rd2 {[%emt 0:00:22]} Nxa4 {[%emt 0:02:31]} 29. g3 {[%emt 0:01:35]} c3 {[%emt 0:01:05]} 30. Rc2 {[%emt 0:00:32]} Rd4 {[%emt 0:00:17]} 0-1

[Event "GER-ch Youth U14 2020"]
[Site "Willingen"]
[Date "2020.10.22"]
[Round "4.22"]
[White "Wiedersich, Hendryk"]
[Black "Bock, Marlon"]
[Result "1/2-1/2"]
[ECO "C47"]
[WhiteElo "1570"]
[BlackElo "1776"]
[Annotator "NA RC"]
[PlyCount "48"]
[EventDate "2020.10.20"]
[EventType "swiss"]
[EventRounds "7"]
[EventCountry "GER"]
[SourceTitle "playchess.com"]
[Source "ChessBase"]
[SourceQuality "1"]
[TimeControl "40/5400+30:1800+30"]

1. e4 {[%emt 0:00:00]} e5 {[%emt 0:00:00]} 2. Nf3 {[%emt 0:00:00]} Nc6 {[%emt 0:00:00]} 3. Nc3 {[%emt 0:00:00]} Nf6 {[%emt 0:00:03]} 4. d4 {[%emt 0:00:11]} exd4 {[%emt 0:04:01]} 5. Nxd4 {[%emt 0:00:24]} Bc5 {[%emt 0:00:57]} 6. Be3 {[%emt 0:00:25]} Bb6 {[%emt 0:01:18]} 7. f3 {[%emt 0:08:10]} d6 {[%emt 0:05:57]} 8. Bb5 {[%emt 0:05:45]} Bd7 {[%emt 0:04:25]} 9. Qd2 {[%emt 0:04:49]} Qe7 {[%emt 0:03:21]} 10. O-O-O {[%emt 0:05:33]} O-O-O {[%emt 0:03:57]} 11. g4 {[%emt 0:07:08]} Ne5 {[%emt 0:14:39]} 12. Bxd7+ {[%emt 0:05:03]} Qxd7 {[%emt 0:04:35]} 13. g5 {[%emt 0:08:16]} Nc4 {[%emt 0:05:59]} 14. Qe2 {[%emt 0:03:08]} Nxe3 {[%emt 0:00:18]} 15. Qxe3 {[%emt 0:00:08]} Ng8 {[%emt 0:01:18]} 16. Nd5 {[%emt 0:02:19]} Ne7 {[%emt 0:05:11]} 17. Nxb6+ {[%emt 0:06:30]} axb6 {[%emt 0:00:12]} 18. Qf4 {[%emt 0:04:19]} Nc6 {[%emt 0:11:09]} 19. Qf5 {[%emt 0:03:41]} Nxd4 {[%emt 0:05:41]} 20. Rxd4 {[%emt 0:01:19]} Qxf5 {[%emt 0:04:56]} 21. exf5 {[%emt 0:00:21]} Rde8 {[%emt 0:01:44]} 22. Re4 {[%emt 0:00:42]} Rxe4 {[%emt 0:03:28]} 23. fxe4 {[%emt 0:00:11]} Re8 {[%emt 0:00:23]} 24. Re1 {[%emt 0:00:07]} Re5 {[%emt 0:03:36]} 1/2-1/2

[Event "GER-ch Youth U14 2020"]
[Site "Willingen"]
[Date "2020.10.23"]
[Round "5.13"]
[White "Tovmasyan, Minas"]
[Black "Tham, Nam"]
[Result "0-1"]
[ECO "D30"]
[WhiteElo "1658"]
[BlackElo "1890"]
[Annotator "NA RC"]
[PlyCount "100"]
[EventDate "2020.10.20"]
[EventType "swiss"]
[EventRounds "7"]
[EventCountry "GER"]
[SourceTitle "playchess.com"]
[Source "ChessBase"]
[SourceQuality "1"]
[TimeControl "40/5400+30:1800+30"]

{[%evp 10,76,22,32767,32767,32767,18,32767,32767,14,9,10,44,33,16,0,25,0,8,9,18,6,10,12,31,26,72,0,0,-2,0,0,32767,32767,32767,32767,-89,-96,-91,32767,-48,-61,-44,-84,-75,-85,-88,-145,32767,32767,32767,32767,32767,32767,32767,32767,-214,-192,-121,-209,32767,-215,-224,-339,-270,-548,-579,-525,-599]} 1. d4 {[%emt 0:00:00]} d5 {[%emt 0:00:00]} 2. c4 {[%emt 0:00:00]} e6 {[%emt 0:00:00]} 3. Nf3 {[%emt 0:00:00]} c6 {[%emt 0:00:00]} 4. Qc2 {[%emt 0:00:24]} Bd6 {[%emt 0:00:52]} 5. Nbd2 {[%emt 0:01:26]} f5 {[%emt 0:02:20]} 6. g3 {[%emt 0:12:01]} Nf6 {[%emt 0:00:16]} 7. Bg2 {[%emt 0:00:08]} O-O {[%emt 0:00:14]} 8. O-O {[%emt 0:00:54]} Ne4 {[%emt 0:00:05]} 9. b3 {[%emt 0:04:54]} Nd7 {[%emt 0:01:05]} 10. Bb2 {[%emt 0:03:58]} Qf6 {[%emt 0:01:39]} 11. e3 {[%emt 0:11:51] E01: Catalan: Early deviations.} g5 {[%emt 0:02:59]} 12. a3 {[%emt 0:14:45] [#]} h5 $146 {[%emt 0:04:21]} ({Predecessor:} 12... Rf7 13. b4 g4 14. Nxe4 fxe4 15. Nh4 Nf8 16. b5 cxb5 17. cxb5 Ng6 18. Nxg6 hxg6 {½-½ (59) Lakerbaya,T (2086)-Khurkhumal,O Gagra 2008}) 13. h4 {[%emt 0:09:14]} g4 {[%emt 0:03:56]} 14. Nxe4 $1 {[%emt 0:03:23]} fxe4 {[%emt 0:00:13]} 15. Ng5 {[%emt 0:01:47]} Qh6 {[%emt 0:00:53]} 16. a4 {[%emt 0:01:54]} Re8 {[%emt 0:09:21]} 17. Ba3 {[%emt 0:17:06]} Bc7 {[%emt 0:00:32]} 18. cxd5 {[%emt 0:00:37]} (18. b4 $14) 18... exd5 {[%emt 0:00:15]} 19. Bxe4 {[%emt 0:01:33]} Rxe4 {[%emt 0:01:26]} 20. Nxe4 {[%emt 0:00:09]} dxe4 {[%emt 0:00:04]} 21. Qxe4 {[%emt 0:01:12]} Nf6 {[%emt 0:01:04]} 22. Qc2 {[%emt 0:03:29]} Qh7 {[%emt 0:03:50]} ({Better is} 22... Be6 $19 23. Rfd1 Bd5) 23. Qxh7+ {[%emt 0:02:56]} Kxh7 {[%emt 0:00:16]} 24. b4 {[%emt 0:02:46]} Be6 {[%emt 0:02:01]} ({Black should play} 24... Ne4 $17 25. b5 Bd7) 25. b5 {[%emt 0:02:12]} Bd5 {[%emt 0:00:05]} 26. bxc6 {[%emt 0:01:51]} Bxc6 {[%emt 0:00:07]} 27. Be7 {[%emt 0:00:18]} Ne4 {[%emt 0:00:44]} 28. Rfd1 {[%emt 0:01:04]} (28. Rfc1 $142 Ba5 29. Ra2) 28... Bd5 {[%emt 0:06:07]} 29. Rdc1 {[%emt 0:00:57]} Ba5 {[%emt 0:00:22]} 30. Rab1 {[%emt 0:00:44]} Nc3 {[%emt 0:01:36]} 31. Rb2 {[%emt 0:00:26]} Re8 {[%emt 0:02:45]} 32. Bd6 {[%emt 0:01:30]} a6 {[%emt 0:02:41]} 33. Kf1 {[%emt 0:00:30]} Ne4 {[%emt 0:05:33]} ({Better is} 33... Nxa4 $19 34. Rbb1 Be4) 34. Bc7 {[%emt 0:00:23]} (34. Bb4 $17 Bxb4 35. Rxb4) 34... Rc8 {[%emt 0:07:12]} 35. Rbc2 {[%emt 0:00:23]} Bd2 {[%emt 0:00:57]} 36. Be5 {[%emt 0:00:27]} Bc3 {[%emt 0:00:48]} 37. Rb1 $19 {[%emt 0:00:45]} (37. Bd6 {is a better defense.} Bb3 38. Bb4 Bxc2 39. Rxc2) 37... Nd2+ {[%emt 0:00:17]} 38. Rxd2 {[%emt 0:00:21]} Bxd2 {[%emt 0:00:09]} 39. Ke2 {[%emt 0:00:16]} Ba5 {[%emt 0:00:22]} 40. Kd3 {[%emt 0:00:41]} Rc3+ {[%emt 0:00:09]} 41. Ke2 {[%emt 0:30:25]} Bf3+ {[%emt 0:31:01]} 42. Kf1 {[%emt 0:00:35]} b5 {[%emt 0:00:29]} 43. axb5 {[%emt 0:00:00]} axb5 {[%emt 0:00:00]} 44. d5 {[%emt 0:00:00]} Rc2 {[%emt 0:00:00]} 45. d6 {[%emt 0:00:00]} b4 {[%emt 0:00:00]} 46. d7 {[%emt 0:00:00]} b3 {[%emt 0:00:00]} 47. Bd4 {[%emt 0:00:00]} Kg6 {[%emt 0:00:00]} 48. e4 {[%emt 0:00:00]} Bxe4 {[%emt 0:00:00]} 49. Rxb3 {[%emt 0:00:00]} Rc1+ {[%emt 0:00:00]} 50. Ke2 {[%emt 0:00:00]} Re1# 0-1

[Event "GER-ch Youth U14 2020"]
[Site "Willingen"]
[Date "2020.10.23"]
[Round "5.15"]
[White "Bungarten, Jona"]
[Black "Ehrig, Leon Chris"]
[Result "1-0"]
[ECO "B14"]
[WhiteElo "1834"]
[BlackElo "1718"]
[Annotator "NA RC"]
[PlyCount "53"]
[EventDate "2020.10.20"]
[EventType "swiss"]
[EventRounds "7"]
[EventCountry "GER"]
[SourceTitle "playchess.com"]
[Source "ChessBase"]
[SourceQuality "1"]
[TimeControl "40/5400+30:1800+30"]

{[%evp 12,39,19,19,31,32767,38,32767,31,17,17,0,70,31,22,0,49,25,32767,32767,408,390,485,328,391,376,403,452,412,417]} 1. e4 {[%emt 0:00:00]} c6 {[%emt 0:00:12]} 2. d4 {[%emt 0:00:00]} d5 {[%emt 0:00:20]} 3. exd5 {[%emt 0:00:00]} cxd5 {[%emt 0:00:13]} 4. c4 {[%emt 0:00:00]} Nf6 {[%emt 0:00:34]} 5. Nc3 {[%emt 0:00:07]} g6 {[%emt 0:00:16]} 6. Qb3 {[%emt 0:00:10]} Bg7 {[%emt 0:02:11]} 7. cxd5 {[%emt 0:00:08]} O-O {[%emt 0:00:54]} 8. Be2 {[%emt 0:00:39]} Re8 {[%emt 0:08:20] B14: Caro-Kann: Panov-Botvinnik Attack with 5...e6 and 5...g6.} 9. Nf3 {[%emt 0:03:18]} Nbd7 {[%emt 0:08:58]} 10. O-O {[%emt 0:02:24]} Nb6 {[%emt 0:02:02] [#]} 11. Bg5 $146 {[%emt 0:01:56]} ({Predecessor:} 11. Bb5 Rf8 12. Re1 Nfxd5 13. Nxd5 Nxd5 14. Bg5 Be6 15. Bc4 Rb8 16. Qa3 a6 17. Bxd5 Qxd5 18. Bxe7 {½-½ (66) Erdelyi,Z (2262)-Ezsol,M (2382) Hungary 2004}) 11... a6 {[%emt 0:09:41]} (11... Nfxd5 $11 12. Nxd5 Nxd5) 12. Bxf6 {[%emt 0:09:26]} exf6 {[%emt 0:07:26]} 13. Rfe1 {[%emt 0:03:59]} Qd6 {[%emt 0:06:43]} 14. a4 {[%emt 0:09:34]} Rd8 {[%emt 0:07:53]} 15. Ne4 {[%emt 0:03:31]} Qxd5 {[%emt 0:07:29]} 16. Qxb6 {[%emt 0:00:13]} Bg4 {[%emt 0:02:05]} 17. Nc3 {[%emt 0:00:41]} Qd7 {[%emt 0:01:13]} 18. Rad1 {[%emt 0:00:55]} Rac8 {[%emt 0:01:44]} 19. h3 {[%emt 0:00:34]} Bh5 {[%emt 0:07:27]} 20. d5 $18 {[%emt 0:01:26]} g5 {[%emt 0:01:51]} 21. Ne5 {[%emt 0:02:42]} fxe5 {[%emt 0:01:43]} 22. Bxh5 {[%emt 0:00:09]} Qe7 {[%emt 0:00:46]} 23. d6 {[%emt 0:01:37]} Qe6 {[%emt 0:00:07]} 24. Ne4 {[%emt 0:00:23]} h6 {[%emt 0:00:34]} 25. Nc5 {[%emt 0:00:12]} Qc4 {[%emt 0:01:53]} 26. Rc1 {[%emt 0:00:18]} Qf4 {[%emt 0:00:20]} 27. Nd3 1-0

[Event "GER-ch Youth U14 2020"]
[Site "Willingen"]
[Date "2020.10.23"]
[Round "5.16"]
[White "Niemann, Leon"]
[Black "Freude, Max"]
[Result "1/2-1/2"]
[ECO "C50"]
[WhiteElo "1880"]
[BlackElo "1850"]
[Annotator "NA RC"]
[PlyCount "44"]
[EventDate "2020.10.20"]
[EventType "swiss"]
[EventRounds "7"]
[EventCountry "GER"]
[SourceTitle "playchess.com"]
[Source "ChessBase"]
[SourceQuality "1"]
[TimeControl "40/5400+30:1800+30"]

{[%evp 10,43,28,18,41,6,50,39,32767,32767,56,-10,0,5,-3,0,12,8,0,0,32767,-10,6,0,22,32767,42,20,11,-19,32767,32767,32767,32767,32767,-45]} 1. e4 {[%emt 0:00:00]} e5 {[%emt 0:00:00]} 2. Nf3 {[%emt 0:00:00]} Nc6 {[%emt 0:00:00]} 3. Bc4 {[%emt 0:00:00]} Bc5 {[%emt 0:00:04]} 4. O-O {[%emt 0:00:00]} Nf6 {[%emt 0:00:24]} 5. d3 {[%emt 0:00:30]} h6 {[%emt 0:06:14]} 6. c3 {[%emt 0:02:47]} O-O {[%emt 0:01:01]} 7. Nbd2 {[%emt 0:00:37] C54: Giuoco Piano: 4 c3 Nf6, main lines with 5 d4 and 5 d3.} d5 {[%emt 0:01:46]} 8. exd5 {[%emt 0:02:00]} Nxd5 {[%emt 0:00:19]} 9. Ne4 {[%emt 0:02:23]} Be7 {[%emt 0:02:32]} 10. d4 {[%emt 0:07:39] [#]} Nb6 $146 {[%emt 0:11:39]} ({Predecessor:} 10... exd4 11. Nxd4 Ne5 12. Be2 f5 13. f4 fxe4 14. fxe5 c5 15. Nb5 Rxf1+ 16. Bxf1 Be6 {1-0 (47) Alen,A (1814)-Karimli,A (1340) Antalya 2019}) 11. Bb3 {[%emt 0:09:41]} exd4 {[%emt 0:04:36]} 12. Nxd4 {[%emt 0:09:41]} Nxd4 {[%emt 0:01:09]} 13. cxd4 {[%emt 0:02:13]} c6 {[%emt 0:06:41]} 14. Nc3 {[%emt 0:10:59]} Bf6 {[%emt 0:05:38]} 15. Be3 {[%emt 0:05:31]} Bf5 {[%emt 0:05:18]} 16. Qf3 {[%emt 0:04:21]} Bh7 {[%emt 0:18:49]} 17. Rad1 {[%emt 0:03:55]} Qe7 {[%emt 0:05:35]} 18. d5 {[%emt 0:07:05]} Bxc3 {[%emt 0:02:16]} 19. bxc3 {[%emt 0:00:22]} Nxd5 {[%emt 0:00:29]} 20. Bxd5 {[%emt 0:00:29]} cxd5 {[%emt 0:00:21]} 21. Qxd5 {[%emt 0:01:47]} Rfd8 {[%emt 0:05:45]} 22. Qc5 $15 {[%emt 0:08:01]} Qxc5 {[%emt 0:04:04]} 1/2-1/2

[Event "GER-ch Youth U14 2020"]
[Site "Willingen"]
[Date "2020.10.23"]
[Round "5.17"]
[White "Klühs, Gustaf"]
[Black "Meuer, David"]
[Result "1/2-1/2"]
[ECO "C00"]
[WhiteElo "1827"]
[BlackElo "1632"]
[Annotator "NA RC"]
[PlyCount "119"]
[EventDate "2020.10.20"]
[EventType "swiss"]
[EventRounds "7"]
[EventCountry "GER"]
[SourceTitle "playchess.com"]
[Source "ChessBase"]
[SourceQuality "1"]
[TimeControl "40/5400+30:1800+30"]

{[%evp 10,119,0,-11,32767,32767,32767,32767,32767,-19,-9,32767,32767,32767,0,0,7,-12,0,-24,-16,-35,0,-26,0,-9,-2,-2,85,82,32767,60,116,112,119,141,360,360,32767,32767,32767,32767,32767,32767,32767,32767,32767,32767,32767,32767,297,292,261,295,299,296,289,297,405,151,197,158,583,32767,32767,32767,32767,32767,720,747,32767,854,1056,32767,32767,32767,32767,0,0,0,32767,32767,32767,32767,32767,32767,32767,32767,-27,32767,32767,32767,32767,32767,32767,32767,32767,32767,32767,32767,0,-70,-70,-65,32767,-68,32767,-121,-45,-52,0,-16]} 1. e4 {[%emt 0:00:00]} e6 {[%emt 0:00:00]} 2. d3 {[%emt 0:00:00]} d5 {[%emt 0:00:00]} 3. Nd2 {[%emt 0:00:00]} Nf6 {[%emt 0:00:00]} 4. Ngf3 {[%emt 0:00:00]} Nc6 {[%emt 0:01:20]} 5. g3 {[%emt 0:01:22]} dxe4 {[%emt 0:01:53]} 6. dxe4 {[%emt 0:00:08]} Bc5 {[%emt 0:00:53]} 7. Bg2 {[%emt 0:01:20]} e5 {[%emt 0:00:56]} 8. O-O {[%emt 0:00:20]} O-O {[%emt 0:00:43]} 9. c3 {[%emt 0:02:50]} a5 {[%emt 0:02:09]} 10. Qc2 {[%emt 0:01:31]} b6 {[%emt 0:01:03]} 11. Nb3 {[%emt 0:01:48] C00: French: Unusual White 2nd moves.} Bd6 {[%emt 0:12:22]} 12. Rd1 {[%emt 0:03:30]} Qe7 {[%emt 0:01:52]} 13. h3 {[%emt 0:05:36]} Ba6 {[%emt 0:07:01]} 14. a4 {[%emt 0:04:09] [#]} Rfd8 $146 {[%emt 0:04:35]} ({Predecessor:} 14... Rad8 15. Be3 Nd7 16. Rd2 Nc5 17. Rad1 Ne6 18. Bf1 Bxf1 19. Kxf1 f6 20. Kg2 g6 {0-1 (42) Carlo,D (2100)-Cordero,D (2063) La Paz 2020}) 15. Be3 {[%emt 0:03:32]} h6 {[%emt 0:10:37]} 16. Nh4 {[%emt 0:00:15]} Bc8 {[%emt 0:03:58]} 17. Rd2 {[%emt 0:01:30]} Be6 {[%emt 0:01:35]} 18. Rad1 {[%emt 0:00:25]} Bxb3 {[%emt 0:15:38]} (18... Qe8 $11 {keeps the balance.}) 19. Qxb3 {[%emt 0:00:15]} Bc5 {[%emt 0:00:21]} 20. Nf5 {[%emt 0:01:16]} Qf8 {[%emt 0:00:36] [#]} 21. Qb5 $1 {[%emt 0:03:12]} Bxe3 {[%emt 0:01:26]} 22. Nxe3 {[%emt 0:01:09]} Qe8 $2 {[%emt 0:03:34] [#]} (22... Rxd2 $16 {keeps fighting.} 23. Rxd2 Qc5) 23. Nd5 $1 {[%emt 0:09:08]} Nxd5 {[%emt 0:02:53]} 24. exd5 {[%emt 0:00:44]} Na7 {[%emt 0:01:53]} 25. Qxe8+ {[%emt 0:00:10]} Rxe8 {[%emt 0:00:04]} 26. d6 {[%emt 0:00:04]} c6 {[%emt 0:00:10]} 27. d7 {[%emt 0:00:16]} Red8 {[%emt 0:00:06]} 28. Rd6 {[%emt 0:00:17]} Rab8 {[%emt 0:00:48]} 29. Bxc6 {[%emt 0:00:19]} Nxc6 {[%emt 0:00:05]} 30. Rxc6 {[%emt 0:00:08]} Kf8 {[%emt 0:02:48]} 31. Rc7 {[%emt 0:04:58]} Ke7 {[%emt 0:01:32]} 32. Kg2 {[%emt 0:01:11]} f6 {[%emt 0:02:08]} 33. Kf3 {[%emt 0:01:02]} b5 {[%emt 0:02:58] [#]} 34. axb5 $2 {[%emt 0:01:16]} (34. Rd2 $1 $18 {is the precise move to win.}) 34... Rxb5 {[%emt 0:00:07]} 35. Rd2 {[%emt 0:00:05]} Ke6 $2 {[%emt 0:02:28]} (35... Rb6 {is more resistant.} 36. Ra7 Rd6 37. Rxd6 Kxd6 38. Rxa5 Rxd7) 36. c4 {[%emt 0:02:23]} Rb4 {[%emt 0:02:50]} 37. c5 {[%emt 0:00:08]} Ke7 {[%emt 0:02:43]} 38. c6 {[%emt 0:00:24]} Rc4 {[%emt 0:03:32]} 39. Rd5 {[%emt 0:01:08]} a4 {[%emt 0:00:35]} 40. Ra5 {[%emt 0:01:13]} Rb4 {[%emt 0:02:38]} 41. Kg2 {[%emt 0:31:41]} Kd6 {[%emt 0:34:32]} 42. Rb7 {[%emt 0:00:09]} Rc4 {[%emt 0:00:00]} 43. Rb6 {[%emt 0:00:00]} Rxc6 {[%emt 0:00:00]} 44. Rxc6+ {[%emt 0:00:00]} Kxc6 {[%emt 0:00:00]} 45. Rxa4 {[%emt 0:00:00]} Rxd7 {[%emt 0:00:00]} 46. Ra3 {[%emt 0:00:00]} Rb7 {[%emt 0:00:00]} 47. Rc3+ {[%emt 0:00:00]} Kd5 {[%emt 0:00:00]} 48. Rc2 {[%emt 0:00:00]} Kd6 {[%emt 0:00:00]} 49. Kf3 {[%emt 0:00:00]} Ke6 {[%emt 0:00:00]} 50. Ke2 {[%emt 0:00:00]} Kf5 {[%emt 0:00:00]} 51. Kd1 {[%emt 0:00:00]} Ke4 {[%emt 0:00:00]} 52. Ke2 {[%emt 0:00:00]} Kf5 {[%emt 0:00:00]} 53. Kf3 $11 {[%emt 0:00:00]} Rb3+ {[%emt 0:00:00]} 54. Kg2 {[%emt 0:00:00]} Rb7 {[%emt 0:00:00]} 55. g4+ {[%emt 0:00:00]} Kg5 {[%emt 0:00:00]} 56. Kg3 {[%emt 0:00:00]} Rb3+ {[%emt 0:00:00]} 57. Kg2 {[%emt 0:00:00]} ({White should try} 57. Rc3 $1 $11 Rxb2 58. h4+ Kg6 59. h5+ Kf7 60. Rc7+ Kg8 61. Rc8+ Kh7 62. f3) 57... Rb7 {[%emt 0:00:00]} 58. f3 {[%emt 0:00:00] [#]} Kg6 {[%emt 0:00:00]} (58... Kh4 $1 $17 59. Re2 g6) 59. h4 {[%emt 0:00:00]} Kf7 {[%emt 0:00:00]} 60. Rd2 $11 1/2-1/2

[Event "GER-ch Youth U14 2020"]
[Site "Willingen"]
[Date "2020.10.23"]
[Round "5.18"]
[White "Bilous, Danylo"]
[Black "Fuhrmann, Bahne"]
[Result "0-1"]
[ECO "E10"]
[WhiteElo "1723"]
[BlackElo "1816"]
[Annotator "NA RC"]
[PlyCount "30"]
[EventDate "2020.10.20"]
[EventType "swiss"]
[EventRounds "7"]
[EventCountry "GER"]
[SourceTitle "playchess.com"]
[Source "ChessBase"]
[SourceQuality "1"]
[TimeControl "40/5400+30:1800+30"]

1. d4 Nf6 2. Nf3 e6 3. c4 a6 4. Nc3 d5 5. Bf4 Bd6 6. Bxd6 Qxd6 7. c5 Qe7 8. b4 Nc6 9. Qb3 O-O 10. e3 b6 11. Be2 Bb7 12. O-O Rfd8 13. cxb6 cxb6 14. b5 Na5 15. Qb2 axb5 0-1

[Event "GER-ch Youth U14 2020"]
[Site "Willingen"]
[Date "2020.10.23"]
[Round "5.19"]
[White "Lerchl, Clemens"]
[Black "Weidenhöfer, Max"]
[Result "0-1"]
[ECO "B10"]
[WhiteElo "1699"]
[BlackElo "1897"]
[Annotator "NA RC"]
[PlyCount "24"]
[EventDate "2020.10.20"]
[EventType "swiss"]
[EventRounds "7"]
[EventCountry "GER"]
[SourceTitle "playchess.com"]
[Source "ChessBase"]
[SourceQuality "1"]
[TimeControl "40/5400+30:1800+30"]

{[%evp 8,24,-56,-50,32767,32767,-25,-28,-25,-31,-19,-18,-26,-35,-2,-26,-9,-704,-705]} 1. e4 {[%emt 0:00:00]} c6 {[%emt 0:00:00]} 2. Nc3 {[%emt 0:00:00]} d5 {[%emt 0:00:00]} 3. Qe2 {[%emt 0:00:03]} d4 {[%emt 0:10:16]} 4. Nd1 {[%emt 0:00:17]} e5 {[%emt 0:03:13]} 5. d3 {[%emt 0:00:09]} Bd6 {[%emt 0:02:07]} 6. g3 {[%emt 0:00:19]} c5 {[%emt 0:06:40]} 7. f4 {[%emt 0:00:29]} Nc6 {[%emt 0:02:37]} 8. Nf3 {[%emt 0:00:38]} Qc7 {[%emt 0:05:25]} 9. f5 {[%emt 0:01:25]} Bd7 {[%emt 0:03:08]} 10. Nf2 {[%emt 0:01:13]} Qa5+ {[%emt 0:08:29]} 11. Qd2 {[%emt 0:04:40]} Nb4 {[%emt 0:06:11]} 12. a3 $2 {[%emt 0:05:02]} (12. c3 $11 Nc6 13. Qc2) 12... Nxc2+ $19 {[%emt 0:01:47] Double Attack} 0-1

[Event "GER-ch Youth U14 2020"]
[Site "Willingen"]
[Date "2020.10.23"]
[Round "5.20"]
[White "Raasch, Hauke"]
[Black "Englert, Luca"]
[Result "0-1"]
[ECO "B06"]
[WhiteElo "1676"]
[BlackElo "1530"]
[Annotator "NA RC"]
[PlyCount "102"]
[EventDate "2020.10.20"]
[EventType "swiss"]
[EventRounds "7"]
[EventCountry "GER"]
[SourceTitle "playchess.com"]
[Source "ChessBase"]
[SourceQuality "1"]
[TimeControl "40/5400+30:1800+30"]

1. d4 {[%emt 0:00:00]} g6 {[%emt 0:00:00]} 2. e4 {[%emt 0:00:00]} Bg7 {[%emt 0:00:00]} 3. Nc3 {[%emt 0:00:15]} d6 {[%emt 0:00:00]} 4. f4 {[%emt 0:00:17]} Nf6 {[%emt 0:00:00]} 5. a3 {[%emt 0:00:14]} O-O {[%emt 0:00:01]} 6. Nf3 {[%emt 0:00:08]} Nbd7 {[%emt 0:00:37]} 7. Be3 {[%emt 0:01:03]} Ng4 {[%emt 0:00:36]} 8. Qd2 {[%emt 0:00:41]} Nxe3 {[%emt 0:00:36]} 9. Qxe3 {[%emt 0:00:07]} c5 {[%emt 0:00:07]} 10. Be2 {[%emt 0:15:17]} cxd4 {[%emt 0:00:44]} 11. Nxd4 {[%emt 0:01:07]} Qb6 {[%emt 0:00:16]} 12. O-O-O {[%emt 0:09:29]} e5 {[%emt 0:01:49]} 13. Nd5 {[%emt 0:00:41]} Qc5 {[%emt 0:00:19]} 14. b4 {[%emt 0:04:31]} Qxd4 {[%emt 0:04:16]} 15. Rxd4 {[%emt 0:00:16]} exd4 {[%emt 0:00:07]} 16. Qf2 {[%emt 0:05:26]} a5 {[%emt 0:01:03]} 17. Nc7 {[%emt 0:07:53]} Ra7 {[%emt 0:00:41]} 18. b5 {[%emt 0:02:04]} b6 {[%emt 0:00:43]} 19. Nd5 {[%emt 0:01:17]} Bb7 {[%emt 0:02:03]} 20. Re1 {[%emt 0:10:14]} Bxd5 {[%emt 0:01:52]} 21. exd5 {[%emt 0:00:10]} Rc7 {[%emt 0:00:14]} 22. Bd3 {[%emt 0:08:31]} Nc5 {[%emt 0:01:04]} 23. Kd2 {[%emt 0:09:33]} Rfc8 {[%emt 0:00:46]} 24. Qe2 {[%emt 0:05:45]} f5 {[%emt 0:01:12]} 25. Qd1 {[%emt 0:05:13]} Kf7 {[%emt 0:02:02]} 26. Re2 {[%emt 0:03:45]} Bf6 {[%emt 0:02:04]} 27. g3 {[%emt 0:03:06]} Na4 {[%emt 0:00:45]} 28. Re6 {[%emt 0:02:55]} Be7 {[%emt 0:01:01]} 29. g4 {[%emt 0:02:38]} Nb2 {[%emt 0:02:02]} 30. Qb1 {[%emt 0:00:49]} Nxd3 {[%emt 0:00:48]} 31. cxd3 {[%emt 0:00:07]} fxg4 {[%emt 0:00:26]} 32. Qb2 {[%emt 0:01:11]} Rc3 {[%emt 0:00:20]} 33. a4 {[%emt 0:00:30]} R8c5 {[%emt 0:00:46]} 34. Qa2 {[%emt 0:00:21]} h5 {[%emt 0:01:33]} 35. Re4 {[%emt 0:00:43]} h4 {[%emt 0:01:09]} 36. Rxd4 {[%emt 0:01:04]} g3 {[%emt 0:00:50]} 37. hxg3 {[%emt 0:00:08]} hxg3 {[%emt 0:00:37]} 38. Rc4 {[%emt 0:00:47]} R5xc4 {[%emt 0:01:27]} 39. dxc4 {[%emt 0:00:16]} g2 {[%emt 0:00:31]} 40. Qb1 {[%emt 0:00:07]} Rg3 {[%emt 0:00:19]} 41. Qg1 {[%emt 0:02:54]} Bf6 {[%emt 0:00:17]} 42. Kc2 {[%emt 0:14:51]} Bd4 {[%emt 0:00:33]} 43. Qe1 {[%emt 0:00:16]} Rc3+ {[%emt 0:00:55]} 44. Kd2 {[%emt 0:01:27]} Re3 {[%emt 0:00:33]} 45. Qd1 {[%emt 0:01:56]} g1=Q {[%emt 0:01:18]} 46. Qxg1 {[%emt 0:00:06]} Re2+ {[%emt 0:00:07]} 47. Kxe2 {[%emt 0:00:26]} Bxg1 {[%emt 0:00:03]} 48. Kf3 {[%emt 0:00:30]} Kf6 {[%emt 0:00:06]} 49. Kg2 {[%emt 0:00:20]} Bd4 {[%emt 0:00:13]} 50. Kf3 {[%emt 0:00:11]} Kf5 {[%emt 0:00:05]} 51. Kg3 {[%emt 0:00:21]} Be3 {[%emt 0:00:26]} 0-1